bitfinex-derivatives/quotes_BTCF0:USTF0_20250716
["timestamp","ask_amount","ask_price","bid_price","bid_amount"]
[1752656852398,0.13904717,118840.0,118830.0,1.08490849]
[1752656852681,0.13674717,118840.0,118830.0,1.15175091]
[1752656852874,7e-08,118840.0,118830.0,1.42815768]
[1752656853074,7e-08,118850.0,118840.0,0.1734036]
[1752656853289,7e-08,118850.0,118840.0,1.93231391]
[1752656855190,7e-08,118850.0,118840.0,1.38496037]
[1752656855485,1e-08,118850.0,118840.0,1.38496037]
[1752656855886,0.0048,118870.0,118860.0,0.1706453]
[1752656856075,0.0048,118870.0,118860.0,1.1112153]
[1752656856276,0.0048,118870.0,118860.0,1.65856884]
[1752656857079,0.0048,118870.0,118860.0,1.47576683]
[1752656857876,0.0068,118870.0,118860.0,1.47576683]
[1752656861090,0.0048,118870.0,118860.0,1.47876683]
[1752656865191,0.11266672,118880.0,118870.0,0.1734412]
[1752656865384,0.11286672,118880.0,118870.0,0.5342412]
[1752656865987,0.11286672,118880.0,118870.0,0.89879273]
[1752656867184,0.11286672,118880.0,118870.0,0.90079273]
[1752656868288,0.11286672,118880.0,118870.0,0.53999273]
[1752656868682,0.28108382,118880.0,118870.0,0.53999273]
[1752656868989,0.64563535,118880.0,118870.0,0.7496312]
[1752656870292,0.64563535,118880.0,118870.0,0.73047911]
[1752656870489,1.24441016,118880.0,118870.0,0.15107911]
[1752656870693,1.24065863,118880.0,118870.0,0.15107911]
[1752656871191,0.90065863,118880.0,118870.0,0.15107911]
[1752656871796,0.90065863,118880.0,118870.0,0.15355911]
[1752656872497,1.05224276,118880.0,118870.0,0.15355911]
[1752656873195,0.69144276,118880.0,118870.0,0.15355911]
[1752656873893,0.53985863,118880.0,118870.0,0.15355911]
[1752656875192,0.90065863,118880.0,118870.0,0.15355911]
[1752656876298,0.5361071,118880.0,118870.0,0.51811064]
[1752656876596,0.1753071,118880.0,118870.0,0.52084064]
[1752656877993,0.1753071,118880.0,118870.0,0.51811064]
[1752656878396,0.1753071,118880.0,118870.0,0.13440667]
[1752656878900,0.1753071,118880.0,118870.0,0.71136667]
[1752656879098,0.44875214,118880.0,118870.0,0.98481171]
[1752656883298,0.00709,118880.0,118870.0,0.68402675]
[1752656883599,0.00709,118880.0,118870.0,1.62174675]
[1752656884100,0.00709,118880.0,118870.0,1.34830171]
[1752656884599,0.00024,118880.0,118870.0,1.62174675]
[1752656884990,0.00024,118880.0,118870.0,1.43934093]
[1752656885404,0.10619285,118880.0,118870.0,1.43934093]
[1752656889798,0.10346285,118880.0,118870.0,1.43934093]
[1752656890301,0.1700399,118890.0,118880.0,0.168217]
[1752656890509,0.1700399,118890.0,118880.0,0.89350126]
[1752656890807,4e-05,118890.0,118880.0,1.25798552]
[1752656891403,4e-05,118890.0,118880.0,1.42721752]
[1752656891602,0.00504,118900.0,118890.0,0.1682029]
[1752656891805,0.00504,118900.0,118890.0,1.47036716]
[1752656892605,4e-05,118910.0,118900.0,0.1681888]
[1752656892901,4e-05,118910.0,118900.0,0.89347306]
[1752656893103,0.15162413,118910.0,118900.0,0.89347306]
[1752656893407,4e-08,118920.0,118910.0,0.1681746]
[1752656893608,4e-08,118920.0,118910.0,1.83478312]
[1752656893805,4e-08,118920.0,118910.0,1.06989681]
[1752656894009,4e-08,118920.0,118910.0,1.47855281]
[1752656894207,4e-08,118920.0,118910.0,2.07729753]
[1752656895008,4e-08,118920.0,118910.0,2.07929753]
[1752656896208,4e-08,118930.0,118920.0,0.1681605]
[1752656896407,4e-05,118940.0,118930.0,0.1681463]
[1752656896707,0.00501,118940.0,118930.0,0.89343056]
[1752656896912,0.00501,118940.0,118930.0,1.1057063]
[1752656897302,0.54006646,118940.0,118930.0,0.5289463]
[1752656897507,0.1765822,118940.0,118930.0,1.1059063]
[1752656898313,0.1765822,118940.0,118930.0,0.5289463]
[1752656898507,0.1765822,118940.0,118930.0,1.1058663]
[1752656899007,0.1765822,118940.0,118930.0,1.08672265]
[1752656900707,0.54106646,118940.0,118930.0,0.72592265]
[1752656901603,0.1755564,118930.0,118920.0,1.1056405]
[1752656901807,0.54004066,118930.0,118920.0,1.1056405]
[1752656902211,0.54004066,118930.0,118920.0,0.7448405]
[1752656902608,0.1755705,118920.0,118910.0,0.06607646]
[1752656902808,0.1706288,118900.0,118890.0,0.5710389]
[1752656903014,0.54008306,118900.0,118890.0,0.6130892]
[1752656903715,0.1755988,118900.0,118890.0,0.6130892]
[1752656904714,0.1755988,118900.0,118890.0,1.1920892]
[1752656904916,0.1755988,118900.0,118890.0,0.6150892]
[1752656907521,0.1755988,118900.0,118890.0,0.68099971]
[1752656907721,0.1757988,118900.0,118890.0,0.68099971]
[1752656908720,0.1757988,118900.0,118890.0,1.04548397]
[1752656909523,0.1757988,118900.0,118890.0,0.68468397]
[1752656916232,0.00517,118900.0,118890.0,1.04548397]
[1752656916422,0.0002,118900.0,118890.0,1.04548397]
[1752656917226,1e-07,118900.0,118890.0,1.21369997]
[1752656917430,0.5,118930.0,118890.0,1.21369997]
[1752656917431,0.00461,118930.0,118920.0,0.1681604]
[1752656917634,0.00461,118930.0,118920.0,1.10940466]
[1752656917833,0.00461,118930.0,118920.0,1.47020466]
[1752656918333,0.0191366,118940.0,118930.0,0.1681464]
[1752656918524,0.0191366,118940.0,118930.0,0.87428923]
[1752656919337,0.00024792,118950.0,118940.0,0.1681322]
[1752656919529,0.00024792,118950.0,118940.0,1.47013646]
[1752656920030,2e-08,118950.0,118940.0,1.47013646]
[1752656920638,2e-08,118950.0,118940.0,0.89341646]
[1752656920826,0.00200002,118950.0,118940.0,1.47165646]
[1752656921330,2e-08,118950.0,118940.0,1.47165646]
[1752656921531,4e-05,118960.0,118950.0,0.168118]
[1752656921737,4e-05,118960.0,118950.0,0.89340226]
[1752656922834,4e-05,118960.0,118950.0,0.96048988]
[1752656923135,0.00399663,118970.0,118960.0,0.1681039]
[1752656923334,0.00399663,118970.0,118960.0,1.25787242]
[1752656923632,0.00399663,118970.0,118960.0,0.89338816]
[1752656924440,0.00399663,118970.0,118960.0,1.47354816]
[1752656924643,0.01093663,118970.0,118960.0,1.1090639]
[1752656925129,0.01093663,118970.0,118960.0,1.47354816]
[1752656925334,0.01093663,118970.0,118960.0,1.11274816]
[1752656925632,0.00399663,118970.0,118960.0,1.11574816]
[1752656925835,0.00399663,118970.0,118960.0,1.84103242]
[1752656926234,0.00399663,118970.0,118960.0,1.47654816]
[1752656926833,0.00399663,118970.0,118960.0,1.84103242]
[1752656927232,0.00399663,118970.0,118960.0,1.47654816]
[1752656929042,0.00399663,118970.0,118960.0,1.5385257]
[1752656930040,0.00399663,118970.0,118960.0,1.54671869]
[1752656932840,0.00399663,118970.0,118960.0,0.9593657]
[1752656933039,0.00860663,118970.0,118960.0,1.5390457]
[1752656933631,0.00860663,118970.0,118960.0,1.1782457]
[1752656936445,0.00399663,118970.0,118960.0,1.5390457]
[1752656936649,0.00419663,118970.0,118960.0,1.5390457]
[1752656937837,0.17689643,118970.0,118960.0,0.9593657]
[1752656938046,0.17922643,118970.0,118960.0,1.1125439]
[1752656938244,0.01113663,118970.0,118960.0,1.1125439]
[1752656938845,0.00880663,118970.0,118960.0,1.1125439]
[1752656939146,0.00880663,118970.0,118960.0,1.5390057]
[1752656940247,0.00880663,118970.0,118960.0,1.1125439]
[1752656940540,0.00880663,118970.0,118960.0,1.5390057]
[1752656941143,0.17689583,118970.0,118960.0,1.5390057]
[1752656941344,0.17922583,118970.0,118960.0,1.5390057]
[1752656942148,0.01113663,118970.0,118960.0,1.5390057]
[1752656942448,0.01113663,118970.0,118960.0,0.9593657]
[1752656942449,0.17922593,118970.0,118960.0,0.9593657]
[1752656942648,0.17922593,118970.0,118960.0,1.1121839]
[1752656942847,0.00880663,118970.0,118960.0,1.5386457]
[1752656943036,0.00419663,118970.0,118960.0,1.5386457]
[1752656946850,0.01115663,118970.0,118960.0,1.5388457]
[1752656947457,0.01115663,118970.0,118960.0,1.1123839]
[1752656947753,0.01115663,118970.0,118960.0,1.5388457]
[1752656948155,0.01115663,118970.0,118960.0,1.51970904]
[1752656948759,0.00882663,118970.0,118960.0,1.51970904]
[1752656949953,0.00419663,118970.0,118960.0,1.51970904]
[1752656950962,0.00419663,118970.0,118960.0,1.45718692]
[1752656952262,0.00882663,118970.0,118960.0,1.45718692]
[1752656954163,0.00882663,118970.0,118960.0,1.46718692]
[1752656954562,0.00419663,118970.0,118960.0,1.46718692]
[1752656956964,0.00882663,118970.0,118960.0,1.46718692]
[1752656957358,0.00882663,118970.0,118960.0,1.8311266]
[1752656957359,0.00419663,118970.0,118960.0,1.8311266]
[1752656957862,0.00419663,118970.0,118960.0,1.46718692]
[1752656960064,0.00882663,118970.0,118960.0,1.46718692]
[1752656960566,0.00882663,118970.0,118960.0,1.10324724]
[1752656960760,0.00882663,118970.0,118960.0,1.46718692]
[1752656961964,0.00419663,118970.0,118960.0,1.46718692]
[1752656962367,0.00419663,118970.0,118960.0,1.8311266]
[1752656963964,0.00419663,118970.0,118960.0,1.81199142]
[1752656964265,0.07986459,118970.0,118960.0,1.81199142]
[1752656966759,0.00419663,118970.0,118960.0,1.81199142]
[1752656968468,0.07986459,118970.0,118960.0,1.81199142]
[1752656969063,0.00419663,118970.0,118960.0,1.81199142]
[1752656971668,0.07984281,118970.0,118960.0,1.81199142]
[1752656973871,0.10958637,118970.0,118960.0,1.81199142]
[1752656974268,0.10958637,118970.0,118960.0,1.23251142]
[1752656974469,0.10958637,118970.0,118960.0,1.81027142]
[1752656976872,0.10958637,118970.0,118960.0,0.14383206]
[1752656977076,0.11691637,118970.0,118960.0,1.80705174]
[1752656977773,0.17961473,118970.0,118960.0,0.50463206]
[1752656977971,0.17961473,118970.0,118960.0,0.71135206]
[1752656978168,0.17961473,118970.0,118960.0,1.07529174]
[1752656978368,0.11691637,118970.0,118960.0,1.43609174]
[1752656979075,0.08716847,118970.0,118960.0,1.43609174]
[1752656980075,0.01152663,118970.0,118960.0,1.45609174]
[1752656980375,0.00419663,118970.0,118960.0,1.45609174]
[1752656980577,0.07983365,118970.0,118960.0,1.82003142]
[1752656980773,0.00419663,118970.0,118960.0,1.82003142]
[1752656981079,0.07983365,118970.0,118960.0,1.82003142]
[1752656981479,0.00419663,118970.0,118960.0,1.82003142]
[1752656982781,3e-08,118970.0,118960.0,1.82003142]
[1752656982976,0.07563705,118970.0,118960.0,1.82003142]
[1752656984888,3e-08,118970.0,118960.0,1.82003142]
[1752656985888,0.07563624,118970.0,118960.0,1.82003142]
[1752656986984,0.06050808,118970.0,118960.0,1.98437166]
[1752656987390,0.02979248,118970.0,118960.0,1.98437166]
[1752656987690,8e-08,118970.0,118960.0,1.98437166]
[1752656993005,0.00495008,118970.0,118960.0,1.98465166]
[1752656993306,8e-08,118970.0,118960.0,1.98465166]
[1752656996604,0.00725,118980.0,118970.0,0.1680882]
[1752656996805,0.00725,118980.0,118970.0,1.03282788]
[1752656997205,0.00499,118980.0,118970.0,1.03282788]
[1752656997507,0.06548479,118980.0,118970.0,1.61070788]
[1752656997707,0.06548479,118980.0,118970.0,1.61170788]
[1752656999008,0.06548479,118980.0,118970.0,1.2477682]
[1752656999204,0.06548479,118980.0,118970.0,1.61170788]
[1752657000508,0.00499,118980.0,118970.0,1.61170788]
[1752657000705,4e-05,118980.0,118970.0,1.61170788]
[1752657001311,0.00499,118980.0,118970.0,1.61170788]
[1752657005409,0.0373,118990.0,118980.0,0.1704641]
[1752657005608,0.1108603,118990.0,118980.0,0.92946378]
[1752657006009,0.03524,118990.0,118980.0,0.92946378]
[1752657006415,0.09571145,118990.0,118980.0,0.92946378]
[1752657011517,0.06632025,118990.0,118980.0,0.92946378]
[1752657013316,0.06632025,118990.0,118980.0,0.93246378]
[1752657013515,0.00887475,118990.0,118980.0,0.93246378]
[1752657013711,5e-08,118990.0,118980.0,0.93246378]
[1752657014415,5e-08,118990.0,118980.0,1.29640346]
[1752657014811,5e-08,118990.0,118980.0,0.93246378]
[1752657015216,4e-05,119000.0,118990.0,0.16806]
[1752657015418,0.00244,119020.0,119010.0,0.1750417]
[1752657015617,0.0071,119020.0,119010.0,1.52901811]
[1752657015918,0.11286748,119020.0,119010.0,1.52901811]
[1752657017013,0.11386748,119020.0,119010.0,1.52901811]
[1752657018619,0.11386748,119020.0,119010.0,1.59709843]
[1752657019123,0.11386748,119020.0,119010.0,1.60537072]
[1752657022322,0.11142748,119020.0,119010.0,1.60537072]
[1752657022826,0.05818538,119020.0,119010.0,1.60537072]
[1752657024125,0.00466,119030.0,119020.0,0.1680176]
[1752657024424,0.00466,119030.0,119020.0,0.89275728]
[1752657024821,0.0047,119040.0,119030.0,0.1680035]
[1752657025124,0.00714,119040.0,119030.0,1.10930318]
[1752657027123,0.00714,119040.0,119030.0,1.47010318]
[1752657027313,1e-07,119040.0,119030.0,1.83404286]
[1752657027527,0.15289113,119060.0,119050.0,0.1750753]
[1752657027828,0.15289113,119060.0,119050.0,1.47705498]
[1752657028229,0.00248,119060.0,119050.0,1.47705498]
[1752657029526,0.00714,119060.0,119050.0,1.1085653]
[1752657029826,0.00714,119060.0,119050.0,1.47250498]
[1752657030126,0.00714,119060.0,119050.0,1.47725498]
[1752657030322,0.00734,119060.0,119050.0,1.47725498]
[1752657030822,0.00734,119060.0,119050.0,0.89981498]
[1752657031023,0.00734,119060.0,119050.0,0.89506498]
[1752657031221,1.4732976,119060.0,119050.0,0.1679757]
[1752657031423,0.1750757,119050.0,119040.0,0.0002]
[1752657031623,1.30400628,119050.0,119040.0,0.1679898]
[1752657031825,1.15200628,119050.0,119040.0,0.1679898]
[1752657032024,1.25739953,119050.0,119040.0,0.1679898]
[1752657032426,0.89345985,119050.0,119040.0,0.1679898]
[1752657032622,0.7880666,119050.0,119040.0,0.1679898]
[1752657032827,0.89358523,119050.0,119040.0,0.14886382]
[1752657033431,0.53278523,119050.0,119040.0,0.5128035]
[1752657033626,0.36478523,119050.0,119040.0,0.5128035]
[1752657033825,0.72558523,119050.0,119040.0,0.14886382]
[1752657034531,0.72558523,119050.0,119040.0,0.5128035]
[1752657034734,0.72558523,119050.0,119040.0,0.14886382]
[1752657035431,0.28079433,119050.0,119040.0,0.5151535]
[1752657036332,0.11281863,119050.0,119040.0,0.5151535]
[1752657036927,0.11281863,119050.0,119040.0,0.8804835]
[1752657037129,0.11281863,119050.0,119040.0,0.5196835]
[1752657037324,0.28079433,119050.0,119040.0,0.5196835]
[1752657037626,0.17540108,119050.0,119040.0,0.5196835]
[1752657037824,0.00742538,119050.0,119040.0,0.5196835]
[1752657038029,0.11281863,119050.0,119040.0,0.5196835]
[1752657038229,0.10571863,119050.0,119040.0,1.24442318]
[1752657038531,0.07565754,119050.0,119040.0,0.8804835]
[1752657038733,0.07565754,119050.0,119040.0,1.24442318]
[1752657039328,0.07565849,119050.0,119040.0,1.24442318]
[1752657039524,0.07565849,119050.0,119040.0,1.24642318]
[1752657039730,0.00032538,119050.0,119040.0,1.24642318]
[1752657039930,0.07565849,119050.0,119040.0,1.24642318]
[1752657040337,0.00032538,119050.0,119040.0,1.24642318]
[1752657044734,0.00032538,119050.0,119040.0,1.2273012]
[1752657044939,0.00418819,119070.0,119060.0,0.1747813]
[1752657045235,0.01132819,119070.0,119060.0,1.83728098]
[1752657045632,0.01132819,119070.0,119060.0,1.25594098]
[1752657045828,0.17927539,119070.0,119060.0,1.47278098]
[1752657046027,0.01132819,119070.0,119060.0,1.47278098]
[1752657046231,0.17927539,119070.0,119060.0,1.47278098]
[1752657046431,0.01132819,119070.0,119060.0,1.47716098]
[1752657046940,0.17927529,119070.0,119060.0,1.1088413]
[1752657047442,0.01132819,119070.0,119060.0,1.1088413]
[1752657047739,0.01132819,119070.0,119060.0,0.5312013]
[1752657047942,0.01132819,119070.0,119060.0,1.47278098]
[1752657048331,0.54321497,119070.0,119060.0,0.7480412]
[1752657048729,0.17927529,119070.0,119060.0,0.7490412]
[1752657049237,0.2546084,119070.0,119060.0,1.08566319]
[1752657049636,0.61854808,119070.0,119060.0,0.72172351]
[1752657050240,1.40199097,119070.0,119060.0,0.001]
[1752657050435,0.2519611,119060.0,119040.0,1.0227142]
[1752657050630,0.5311953,119050.0,119040.0,0.8299036]
[1752657050837,0.00714,119050.0,119040.0,1.19628328]
[1752657052036,0.00472,119050.0,119040.0,1.56102328]
[1752657052228,0.00714,119060.0,119050.0,0.1723553]
[1752657052434,0.00714,119060.0,119050.0,0.53629498]
[1752657052634,0.08247311,119060.0,119050.0,0.53629498]
[1752657052934,0.08247311,119060.0,119050.0,0.51717193]
[1752657053339,0.08005311,119060.0,119050.0,0.87797193]
[1752657053837,0.00472,119060.0,119050.0,0.90797193]
[1752657054939,0.00472,119060.0,119050.0,0.91097193]
[1752657056242,0.08005311,119060.0,119050.0,0.91097193]
[1752657056442,0.1751013,119060.0,119050.0,0.90903193]
[1752657056742,0.5359013,119060.0,119050.0,0.7544954]
[1752657056944,0.61123441,119060.0,119050.0,0.7544954]
[1752657057945,0.25043441,119060.0,119050.0,1.1152954]
[1752657058137,0.25043441,119060.0,119050.0,1.47923508]
[1752657058338,0.25047441,119060.0,119050.0,1.47923508]
[1752657058540,0.25047441,119060.0,119050.0,1.1152954]
[1752657059041,0.1751413,119060.0,119050.0,1.1152954]
[1752657059251,0.5359413,119060.0,119050.0,0.7544954]
[1752657059544,0.5359413,119060.0,119050.0,0.1734154]
[1752657059740,1.00527423,119060.0,119050.0,0.7518154]
[1752657060145,0.64133455,119060.0,119050.0,0.7518154]
[1752657060346,0.64133455,119060.0,119050.0,1.11575508]
[1752657060546,0.28053455,119060.0,119050.0,1.11575508]
[1752657060746,0.1751413,119060.0,119050.0,1.11575508]
[1752657061243,0.1751413,119060.0,119050.0,0.7542554]
[1752657061449,0.1753413,119060.0,119050.0,0.7542554]
[1752657062248,0.1753413,119060.0,119050.0,1.11819508]
[1752657065550,0.2507612,119060.0,119050.0,1.11819508]
[1752657065750,0.1753413,119060.0,119050.0,1.11819508]
[1752657066153,0.2507612,119060.0,119050.0,1.11819508]
[1752657066650,0.1753413,119060.0,119050.0,1.11819508]
[1752657067850,0.1753413,119060.0,119050.0,1.47899508]
[1752657068051,0.1753413,119060.0,119050.0,1.11819508]
[1752657068354,0.1753413,119060.0,119050.0,1.47899508]
[1752657068651,0.1753413,119060.0,119050.0,1.11819508]
[1752657070349,0.1753413,119060.0,119050.0,1.12013508]
[1752657071356,0.00738,119060.0,119050.0,1.12013508]
[1752657071552,0.1753408,119060.0,119050.0,1.48093508]
[1752657072255,0.00738,119060.0,119050.0,1.12013508]
[1752657072453,0.1753408,119060.0,119050.0,1.48093508]
[1752657072654,0.1753408,119060.0,119050.0,1.12013508]
[1752657072853,0.2507607,119060.0,119050.0,1.48093508]
[1752657073054,0.1753408,119060.0,119050.0,1.48093508]
[1752657073953,0.1753408,119060.0,119050.0,1.11819508]
[1752657074358,0.28073405,119060.0,119050.0,1.11819508]
[1752657075158,0.28073405,119060.0,119050.0,1.47899508]
[1752657075355,0.28073405,119060.0,119050.0,1.48093508]
[1752657075658,0.28073405,119060.0,119050.0,1.12013508]
[1752657076458,0.28073395,119060.0,119050.0,1.12013508]
[1752657076756,0.28073395,119060.0,119050.0,1.48093508]
[1752657078558,0.27843395,119060.0,119050.0,1.48093508]
[1752657079761,0.27843395,119060.0,119050.0,1.12013508]
[1752657081854,0.18123698,119060.0,119050.0,1.12013508]
[1752657082060,0.07584373,119060.0,119050.0,1.48093508]
[1752657082259,0.00024,119060.0,119050.0,1.48093508]
[1752657082761,0.00024,119060.0,119050.0,1.52093508]
[1752657083760,0.07584373,119060.0,119050.0,1.52093508]
[1752657084656,0.00024,119060.0,119050.0,1.52093508]
[1752657084859,0.10563325,119060.0,119050.0,1.52093508]
[1752657091268,0.00024,119060.0,119050.0,1.52093508]
[1752657092074,0.07581142,119060.0,119050.0,1.52093508]
[1752657095373,0.07581142,119060.0,119050.0,1.1569954]
[1752657095579,0.00024,119060.0,119050.0,1.52093508]
[1752657097274,0.10563325,119060.0,119050.0,1.52093508]
[1752657102281,0.00024,119060.0,119050.0,1.52093508]
[1752657106479,0.07579848,119060.0,119050.0,1.52093508]
[1752657106781,0.00024,119060.0,119050.0,1.52093508]
[1752657109184,0.07579848,119060.0,119050.0,1.52093508]
[1752657109583,0.07581443,119060.0,119050.0,1.52093508]
[1752657111784,0.00024,119060.0,119050.0,1.52093508]
[1752657115684,0.00024,119060.0,119050.0,1.88173508]
[1752657121088,0.00024,119060.0,119050.0,1.87973508]
[1752657122791,0.10608618,119060.0,119050.0,1.87973508]
[1752657123190,0.00024,119060.0,119050.0,1.87973508]
[1752657125189,0.11295618,119060.0,119050.0,1.87861508]
[1752657125494,0.11295618,119060.0,119050.0,1.83861508]
[1752657125696,0.00711,119060.0,119050.0,1.83869508]
[1752657129698,0.00711,119060.0,119050.0,1.83885508]
[1752657130099,0.00711,119060.0,119050.0,1.83873508]
[1752657130599,0.00711,119060.0,119050.0,1.25889508]
[1752657130801,0.00711,119060.0,119050.0,1.83869508]
[1752657131002,0.00711,119060.0,119050.0,1.25889508]
[1752657131196,0.00711,119060.0,119050.0,1.83861508]
[1752657132203,0.08272716,119060.0,119050.0,1.4746754]
[1752657132394,0.08272716,119060.0,119050.0,1.83861508]
[1752657133596,0.07811716,119060.0,119050.0,1.83861508]
[1752657133798,0.07585716,119060.0,119050.0,1.83861508]
[1752657133997,0.00478,119060.0,119050.0,1.83861508]
[1752657134503,0.00716,119060.0,119050.0,1.83861508]
[1752657138203,0.08277716,119060.0,119050.0,1.83861508]
[1752657139001,0.08277716,119060.0,119050.0,1.4746754]
[1752657139308,0.08277716,119060.0,119050.0,1.83861508]
[1752657140907,0.00716,119060.0,119050.0,1.83861508]
[1752657141302,0.11300618,119060.0,119050.0,1.83861508]
[1752657142004,0.18861879,119060.0,119050.0,1.83861508]
[1752657142206,0.08277261,119060.0,119050.0,1.83861508]
[1752657143707,0.08277261,119060.0,119050.0,1.4746754]
[1752657143906,0.08277261,119060.0,119050.0,1.83861508]
[1752657145908,0.07585261,119060.0,119050.0,1.83861508]
[1752657146504,0.07585261,119060.0,119050.0,1.47781508]
[1752657148212,0.00024,119060.0,119050.0,1.47781508]
[1752657149610,0.07585829,119060.0,119050.0,1.47781508]
[1752657149805,0.11003437,119070.0,119060.0,0.1744404]
[1752657150112,0.0798017,119070.0,119060.0,0.98918008]
[1752657151615,0.0798017,119070.0,119060.0,0.99768412]
[1752657153114,0.0798017,119070.0,119060.0,0.99968412]
[1752657153318,0.0798017,119070.0,119060.0,0.63574444]
[1752657153518,0.0843417,119070.0,119060.0,0.99968412]
[1752657154417,0.0843417,119070.0,119060.0,0.90968412]
[1752657154820,0.00872819,119070.0,119060.0,0.90968412]
[1752657155023,0.11457437,119070.0,119060.0,0.90968412]
[1752657158526,0.00872819,119070.0,119060.0,0.90968412]
[1752657158726,0.00876819,119070.0,119060.0,0.90968412]
[1752657159227,0.01114819,119070.0,119060.0,0.90968412]
[1752657161022,0.01114819,119070.0,119060.0,1.09073198]
[1752657161623,0.01114819,119070.0,119060.0,1.08873198]
[1752657161828,0.01114819,119070.0,119060.0,1.08973198]
[1752657163230,0.00876819,119070.0,119060.0,1.08973198]
[1752657163428,0.00876819,119070.0,119060.0,1.36222575]
[1752657164932,0.11457831,119070.0,119060.0,1.36222575]
[1752657165132,0.11457831,119070.0,119060.0,1.08973198]
[1752657165928,0.11003831,119070.0,119060.0,1.36222575]
[1752657167238,0.00422819,119070.0,119060.0,1.36222575]
[1752657167439,0.00442819,119070.0,119060.0,1.36222575]
[1752657167733,0.00442819,119070.0,119060.0,1.08973198]
[1752657168636,0.00442819,119070.0,119060.0,1.40222575]
[1752657169044,0.07999881,119070.0,119060.0,1.40222575]
[1752657171242,0.04870031,119070.0,119060.0,1.40222575]
[1752657171642,0.15545113,119100.0,119070.0,0.1679464]
[1752657171847,0.15545113,119100.0,119090.0,1.08018574]
[1752657172043,0.15545113,119100.0,119090.0,1.22018574]
[1752657172344,0.15545113,119100.0,119090.0,1.49267951]
[1752657172345,0.00104,119100.0,119090.0,1.49267951]
[1752657172538,0.00104,119100.0,119090.0,1.22018574]
[1752657172743,0.00859496,119120.0,119110.0,0.1678899]
[1752657172942,0.00859496,119120.0,119110.0,1.10852776]
[1752657173344,0.01101496,119120.0,119110.0,0.1678899]
[1752657173646,0.17889076,119120.0,119110.0,0.7454899]
[1752657173846,0.17889076,119120.0,119110.0,1.10852776]
[1752657174046,0.17889076,119120.0,119110.0,0.53092776]
[1752657174246,0.17889076,119120.0,119110.0,0.59846055]
[1752657174449,0.17889076,119120.0,119110.0,1.17614055]
[1752657174644,0.90272862,119120.0,119110.0,0.06753279]
[1752657174846,1.07063262,119120.0,119110.0,0.81326269]
[1752657175058,1.07063262,119120.0,119110.0,0.23542269]
[1752657175242,0.507,119130.0,119120.0,0.1678758]
[1752657175444,0.007,119130.0,119120.0,0.8856758]
[1752657175650,0.3678,119130.0,119120.0,0.1678758]
[1752657176558,0.007,119130.0,119120.0,0.1678758]
[1752657178847,0.007,119130.0,119120.0,0.1688758]
[1752657179758,0.007,119130.0,119120.0,0.7538758]
[1752657181258,0.1748618,119130.0,119120.0,0.7538758]
[1752657181952,1.42658766,119130.0,119120.0,0.001]
[1752657182253,0.8427498,119130.0,119120.0,0.1688759]
[1752657182455,1.56658766,119130.0,119120.0,0.1688759]
[1752657184158,1.035688,119130.0,119120.0,0.1688759]
[1752657184354,0.8678,119130.0,119120.0,0.53191376]
[1752657184555,0.3678,119130.0,119120.0,0.53191376]
[1752657184751,0.007,119130.0,119120.0,0.1688759]
[1752657184946,0.007,119130.0,119120.0,0.53191376]
[1752657185149,0.007,119130.0,119120.0,0.89271376]
[1752657185862,0.007,119130.0,119120.0,0.5296759]
[1752657186057,0.007,119130.0,119120.0,0.89271376]
[1752657186257,0.007,119130.0,119120.0,0.53191376]
[1752657187855,0.47340454,119140.0,119130.0,0.1678618]
[1752657188057,0.48360454,119140.0,119130.0,1.09558652]
[1752657188260,0.65145224,119140.0,119130.0,0.73254866]
[1752657189056,0.12280454,119140.0,119130.0,1.09558652]
[1752657189562,0.1852477,119140.0,119130.0,1.09558652]
[1752657189863,0.1852477,119140.0,119130.0,1.09758652]
[1752657190060,0.0174,119140.0,119130.0,1.09758652]
[1752657190361,0.01503,119140.0,119130.0,1.09758652]
[1752657191460,0.00503,119140.0,119130.0,1.09758652]
[1752657191662,0.00503,119140.0,119130.0,0.73454866]
[1752657191864,0.00503,119140.0,119130.0,1.09758652]
[1752657193863,0.1752477,119140.0,119130.0,1.09758652]
[1752657194659,0.1752477,119140.0,119130.0,0.51378652]
[1752657194861,1.27908556,119140.0,119130.0,0.002]
[1752657195057,1.77908556,119140.0,119130.0,0.002]
[1752657195366,2.19696556,119140.0,119130.0,0.002]
[1752657195561,2.12696556,119140.0,119130.0,0.002]
[1752657195868,1.55933224,119140.0,119130.0,0.002]
[1752657196055,0.1750218,119130.0,119120.0,0.23469226]
[1752657196250,0.5360218,119130.0,119120.0,0.23469226]
[1752657196664,1.1195018,119130.0,119120.0,0.23469226]
[1752657197257,1.1195018,119130.0,119120.0,0.23569226]
[1752657198665,1.1195018,119130.0,119120.0,0.1688696]
[1752657198857,1.48253966,119130.0,119120.0,0.1688696]
[1752657199468,1.5879442,119130.0,119120.0,0.1688696]
[1752657201465,1.48253966,119130.0,119120.0,0.1688696]
[1752657203459,1.1183918,119130.0,119120.0,0.1688696]
[1752657203760,1.48142966,119130.0,119120.0,0.1688696]
[1752657204268,1.1183918,119130.0,119120.0,0.1688696]
[1752657204568,0.5349118,119130.0,119120.0,0.1688696]
[1752657204768,1.1174318,119130.0,119120.0,0.001]
[1752657205065,1.82046966,119130.0,119120.0,0.00028218]
[1752657205262,1.63088079,119130.0,119120.0,0.00028218]
[1752657205963,2.11876879,119130.0,119120.0,0.00028218]
[1752657206162,1.96835766,119130.0,119120.0,0.00028218]
[1752657206470,1.64835766,119130.0,119120.0,0.00028218]
[1752657206866,1.79876879,119130.0,119120.0,0.00028218]
[1752657207167,1.43573093,119130.0,119120.0,0.00028218]
[1752657207361,1.79876879,119130.0,119120.0,0.00028218]
[1752657207563,1.64835766,119130.0,119120.0,0.00028218]
[1752657208370,1.06583766,119130.0,119120.0,0.00028218]
[1752657208671,1.79895655,119130.0,119120.0,0.00028218]
[1752657208868,2.13220475,119130.0,119110.0,0.0002]
[1752657209069,0.17505,119110.0,119100.0,0.0002]
[1752657209265,0.17505,119110.0,119090.0,0.1681176]
[1752657209266,0.1702741,119100.0,119090.0,0.1681176]
[1752657209462,0.1752641,119100.0,119090.0,0.1679176]
[1752657210766,0.1752641,119100.0,119090.0,0.53140546]
[1752657211071,0.5892,119100.0,119090.0,0.5992584]
[1752657211275,0.7571041,119100.0,119090.0,0.5992584]
[1752657211575,0.7571041,119100.0,119090.0,0.5989784]
[1752657212166,0.7574241,119100.0,119090.0,0.5989784]
[1752657212476,0.00699,119100.0,119090.0,0.9600584]
[1752657213281,0.00699,119100.0,119090.0,1.5422184]
[1752657214977,0.1748941,119100.0,119090.0,1.5422184]
[1752657215163,0.1772641,119100.0,119090.0,1.5422184]
[1752657216076,0.1772641,119100.0,119090.0,1.5419384]
[1752657216774,0.1772641,119100.0,119090.0,1.1811384]
[1752657218378,0.1772641,119100.0,119090.0,1.1814184]
[1752657218882,0.1772641,119100.0,119090.0,0.23594054]
[1752657219575,0.1772641,119100.0,119090.0,0.5989784]